bitfinex-derivatives/quotes_ETHF0:USTF0_20260201
["timestamp","ask_amount","ask_price","bid_price","bid_amount"]
[1769957141022,0.00326199,2361.5,2360.8,5.3e-07]
[1769957141023,0.21197,2361.0,2360.8,5.3e-07]
[1769957141219,0.00326199,2361.5,2360.8,5.3e-07]
[1769957141424,0.00326199,2361.5,2358.5,3.74666317]
[1769957141425,0.21198,2360.9,2359.7,0.4962447]
[1769957141618,0.21194,2361.4,2360.1,0.4962447]
[1769957141822,0.00326199,2361.5,2360.2,0.49535779]
[1769957142022,0.00177381,2362.1,2360.6,40.8]
[1769957142221,0.00177381,2361.8,2360.6,40.8]
[1769957142617,0.21195,2361.3,2360.6,40.8]
[1769957142817,0.21195,2361.3,2360.6,45.53541979]
[1769957143020,4.91404474,2362.1,2361.0,0.49535779]
[1769957143021,0.21189,2361.9,2361.0,0.49535779]
[1769957143525,4.91404474,2362.1,2361.0,0.49535779]
[1769957143726,4.91404474,2362.1,2360.6,41.30006827]
[1769957144127,4.91404474,2362.0,2360.6,41.30006827]
[1769957145327,1.20177381,2362.2,2360.6,40.80471048]
[1769957145328,4.91404474,2361.6,2360.6,40.80471048]
[1769957145827,0.21196,2361.2,2360.6,40.80471048]
[1769957146027,4.91404474,2361.7,2360.7,0.49183917]
[1769957146230,0.21191,2361.7,2360.8,4.240062]
[1769957146728,0.21191,2361.7,2360.9,4.240062]
[1769957146923,4.91404474,2361.8,2360.6,40.80471048]
[1769957147116,4.92328316,2361.9,2360.7,0.49183917]
[1769957147318,8.90010441,2362.5,2360.9,0.49183917]
[1769957147319,0.21188,2362.0,2360.9,0.49183917]
[1769957147622,1.90784,2362.5,2361.5,4.73190117]
[1769957147824,1.90784,2362.5,2361.5,0.49183917]
[1769957148025,1.90784,2362.5,2361.6,45.53347699]
[1769957148225,1.90784,2362.5,2361.6,41.29341499]
[1769957148426,4.92013152,2362.3,2360.7,0.49341499]
[1769957148624,0.21189,2362.0,2360.8,0.49341499]
[1769957148828,0.21189,2362.0,2361.4,0.49341499]
[1769957149129,4.91404474,2362.4,2361.4,0.49341499]
[1769957149331,1.2,2362.5,2361.8,4.240062]
[1769957149528,1.2,2362.5,2361.9,40.8]
[1769957149825,1.41184,2362.5,2361.9,40.8]
[1769957150026,0.6658197,2362.5,2361.9,40.8]
[1769957150626,4.91404474,2362.9,2362.2,4.73296199]
[1769957150831,0.21178,2363.1,2362.4,0.49289999]
[1769957151031,0.21183,2362.6,2362.4,3.93e-06]
[1769957151430,0.21184,2362.5,2361.9,40.8]
[1769957151627,0.21188,2362.0,2361.2,0.49289999]
[1769957151822,0.21188,2362.0,2361.4,0.49275423]
[1769957152023,0.21189,2361.9,2361.0,0.49275423]
[1769957152323,0.21192,2361.7,2361.0,0.49275423]
[1769957152528,0.00740829,2362.0,2361.1,40.8]
[1769957152730,4.91404474,2361.9,2360.6,0.49275423]
[1769957152931,0.21195,2361.3,2360.7,0.49275423]
[1769957153128,0.21195,2361.3,2359.7,0.49275423]
[1769957153330,4.91404474,2361.6,2360.2,0.49275423]
[1769957153629,0.21202,2360.5,2359.6,0.49275423]
[1769957153827,6.14285573,2361.2,2359.2,2.18760092]
[1769957153828,0.21204,2360.3,2359.2,2.18760092]
[1769957154035,0.21204,2360.3,2359.3,0.49260092]
[1769957154431,0.21204,2360.3,2359.4,3.774052]
[1769957154628,0.21205,2360.1,2359.5,40.8]
[1769957154936,0.21208,2359.8,2358.9,0.49260092]
[1769957155130,6.14285573,2360.5,2359.1,0.49645838]
[1769957155131,0.21203,2360.4,2359.1,0.49645838]
[1769957155431,11.1101189,2360.4,2358.7,0.49645838]
[1769957155639,0.21208,2359.8,2358.7,0.49645838]
[1769957155833,0.21208,2359.8,2358.8,41.29645838]
[1769957156036,0.2160146,2359.8,2358.9,3.774052]
[1769957156536,0.21209,2359.7,2358.8,41.29971161]
[1769957156835,0.0039346,2359.8,2358.8,40.80325323]
[1769957157036,0.21212,2359.3,2358.8,40.80325323]
[1769957157227,0.0039346,2359.8,2358.8,0.00325323]
[1769957157431,0.21215,2359.1,2358.4,0.5036228]
[1769957157934,0.21215,2359.0,2358.0,0.50080432]
[1769957158334,0.21215,2359.0,2358.3,1.50092699]
[1769957158739,0.21215,2359.0,2358.5,1.50092699]
[1769957158929,0.0039346,2359.8,2358.5,0.50080432]
[1769957159240,0.20345813,2359.7,2358.1,0.47904699]
[1769957159534,0.21213,2359.2,2358.3,0.47904699]
[1769957159730,0.21213,2359.2,2358.4,0.47904699]
[1769957159929,0.21216,2359.0,2358.0,0.48441338]
[1769957160233,0.21213,2359.2,2358.6,1.03652699]
[1769957160434,0.0039346,2359.8,2358.5,42.31557398]
[1769957160630,0.21208,2359.8,2359.1,1.03652699]
[1769957160842,0.20305187,2360.5,2359.5,1.03652699]
[1769957161042,0.21207,2359.9,2358.7,0.47904699]
[1769957161338,0.20305187,2360.3,2358.7,0.47904699]
[1769957161539,0.20305187,2360.3,2358.8,0.47904699]
[1769957161741,0.21212,2359.4,2358.5,40.8]
[1769957162041,0.21208,2359.8,2358.5,40.8]
[1769957162230,0.47009518,2359.4,2357.4,2.49303233]
[1769957162541,0.21225,2357.9,2357.0,0.47904699]
[1769957162839,0.21234,2356.9,2356.2,0.47904699]
[1769957163135,4.94141186,2357.6,2355.8,0.47904699]
[1769957163337,0.21235,2356.8,2355.8,0.4839088]
[1769957163734,0.21235,2356.8,2355.9,40.8]
[1769957163937,0.21229,2357.5,2356.0,0.47904699]
[1769957164136,0.00335022,2357.6,2356.0,0.47904699]
[1769957164439,0.21235,2356.9,2356.0,0.47904699]
[1769957164644,0.20618211,2357.0,2355.9,39.80498]
[1769957164937,0.21243,2356.0,2353.7,0.21263]
[1769957165138,0.47009518,2357.3,2354.5,0.21256]
[1769957165343,0.47009518,2357.3,2354.6,4.185]
[1769957165640,0.47009518,2357.3,2355.6,40.8]
[1769957165840,0.21237,2356.6,2355.6,40.80509322]
[1769957166041,0.47009518,2357.1,2355.6,40.80509322]
[1769957166438,0.47009518,2356.7,2355.6,40.80509322]
[1769957166640,0.21242,2356.1,2355.6,0.00509322]
[1769957167837,0.47009518,2356.6,2355.6,3.22e-06]
[1769957168237,0.21243,2355.9,2355.6,3.22e-06]
[1769957168632,0.49099091,2356.3,2353.4,0.48587974]
[1769957168832,0.49099091,2356.1,2353.6,0.48587974]
[1769957169039,0.21249,2355.3,2353.8,0.48587974]
[1769957169235,0.21243,2356.0,2353.8,0.48587974]
[1769957169440,0.21243,2356.0,2353.9,0.48587974]
[1769957169639,0.2160625,2356.0,2353.9,0.48969106]
[1769957169838,0.21245,2355.7,2354.1,0.48587974]
[1769957170241,0.49462341,2356.0,2354.7,40.8]
[1769957170445,0.49099091,2355.9,2354.7,40.8]
[1769957170647,0.21245,2355.7,2354.7,40.8]
[1769957171737,0.21245,2355.7,2354.8,0.48587974]
[1769957172142,0.0036325,2356.0,2354.8,0.48587974]
[1769957172447,0.21244,2355.8,2355.0,0.48587974]
[1769957172748,0.21245,2355.7,2354.7,40.8]
[1769957173549,0.49462341,2356.0,2354.7,40.8]
[1769957174236,0.49462341,2356.0,2354.1,0.48587974]
[1769957174443,0.21251,2355.0,2354.1,0.48587974]
[1769957174846,0.21252,2354.9,2354.1,0.48587974]
[1769957175245,0.21252,2354.9,2354.2,40.8]
[1769957175847,1.7016325,2356.0,2354.3,0.49652081]
[1769957176145,0.21252,2355.0,2354.2,40.8]
[1769957176347,1.7016325,2356.0,2354.2,40.8]
[1769957177049,1.7016325,2356.0,2353.9,0.28813323]
[1769957177050,0.21255,2354.7,2353.9,0.28813323]
[1769957178052,0.21255,2354.7,2354.0,40.8]
[1769957178845,0.21255,2354.6,2354.0,40.8]
[1769957179052,0.21256,2354.5,2354.0,40.8]
[1769957179444,0.21142137,2355.4,2354.1,0.48587974]
[1769957179751,0.21142137,2355.9,2354.2,0.48587974]
[1769957179947,0.22611532,2355.5,2354.2,0.48587974]
[1769957180244,0.21249,2355.3,2354.2,0.48587974]
[1769957180445,0.22611532,2355.9,2354.3,0.48587974]
[1769957180647,0.22611532,2355.7,2354.3,0.48587974]
[1769957181048,0.21252,2355.0,2354.3,0.48587974]
[1769957181252,0.21253,2354.8,2354.3,0.48587974]
[1769957181550,0.2125,2355.1,2354.3,0.48587974]
[1769957181944,0.21252,2354.9,2354.3,0.48587974]
[1769957182650,0.23126078,2355.0,2353.9,9.1e-07]
[1769957182848,0.21262,2353.8,2353.1,0.48587974]
[1769957183052,1.699,2355.0,2352.3,0.48587974]
[1769957183053,0.23126078,2354.0,2352.3,0.48587974]
[1769957183247,0.21264,2353.6,2352.3,0.48587974]
[1769957183447,0.23126078,2354.0,2352.3,0.48587974]
[1769957183654,0.23126078,2354.0,2352.4,41.28587974]
[1769957183655,0.21266,2353.4,2352.4,41.28587974]
[1769957183853,0.21809467,2353.4,2352.5,0.48587974]
[1769957184449,0.21267,2353.3,2352.5,0.48587974]
[1769957186048,0.21268,2353.1,2352.5,0.48587974]
[1769957186355,0.21266,2353.4,2352.5,0.48587974]
[1769957186565,0.2127,2353.0,2352.4,40.80320876]
[1769957186750,1.7,2354.3,2351.4,0.48587974]
[1769957186751,0.21273,2352.6,2351.4,0.48587974]
[1769957186947,0.21274,2352.5,2351.4,0.48587974]
[1769957187149,0.21278,2352.1,2351.0,0.49652081]
[1769957187354,0.357125,2353.0,2351.1,40.8]
[1769957187551,13.013,2353.2,2351.1,40.8]
[1769957187752,4.87009328,2352.9,2350.3,0.49652081]
[1769957187959,0.21281,2351.7,2350.4,0.49520949]
[1769957188359,0.03326672,2352.2,2350.5,0.49520949]
[1769957188560,0.21283,2351.5,2350.5,0.49520949]
[1769957188762,0.21284,2351.4,2350.7,0.49520949]
[1769957189460,0.21279,2352.0,2350.8,0.49431266]
[1769957190161,0.21275,2352.4,2350.8,0.49431266]
[1769957190362,0.21276,2352.3,2350.8,0.49431266]
[1769957190559,0.00432687,2352.3,2350.8,0.49431266]
[1769957190761,0.2127,2352.9,2350.8,0.49431266]
[1769957191168,0.21271,2352.8,2350.9,0.49492595]
[1769957191665,0.03891093,2353.6,2350.9,0.49492595]
[1769957191666,0.21273,2352.6,2350.9,0.49492595]
[1769957191867,0.21612078,2352.6,2350.9,0.49492595]
[1769957192068,0.21274,2352.5,2350.9,0.49492595]
[1769957192460,0.21275,2352.4,2350.9,0.49492595]
[1769957192762,0.21278,2352.0,2351.1,0.49475239]
[1769957194273,0.2128,2351.8,2351.1,0.49475239]
[1769957194572,0.00339078,2352.6,2350.7,0.49893376]
[1769957194973,0.21284,2351.4,2350.6,40.8]
[1769957195172,0.21286,2351.2,2350.7,0.49893376]
[1769957195376,0.21279,2352.0,2350.7,0.49893376]
[1769957196071,0.21281,2351.8,2350.8,2.99454638]
[1769957196270,0.00339078,2352.6,2350.9,40.8]
[1769957196680,0.21284,2351.4,2350.9,40.8]
[1769957196880,1.701,2352.1,2350.5,0.00459967]
[1769957197177,0.21285,2351.2,2350.5,0.00459967]
[1769957197366,0.21287,2351.0,2350.0,0.49943952]
[1769957197566,0.2129,2350.7,2350.0,0.49943952]
[1769957197767,0.2129,2350.7,2350.1,40.8]
[1769957198174,0.00730208,2351.3,2350.1,40.8]
[1769957198473,0.21291,2350.6,2350.1,0.00317464]
[1769957198677,0.21291,2350.6,2349.7,0.50014101]
[1769957198678,0.00730208,2351.0,2349.7,0.50014101]
[1769957198880,0.00306269,2351.3,2349.7,0.50014101]
[1769957199074,0.21288,2350.9,2349.7,0.50014101]
[1769957199274,0.21289,2350.8,2349.7,0.50014101]
[1769957199473,0.21289,2350.8,2349.9,0.50379839]
[1769957199673,0.21289,2350.8,2349.9,0.50768576]
[1769957200483,0.2129,2350.7,2349.9,0.50768576]
[1769957200676,0.21286,2351.1,2349.9,0.50768576]
[1769957200872,0.21294,2350.3,2349.9,0.00388737]
[1769957201078,0.00306269,2351.3,2348.7,0.50597716]
[1769957201079,0.21297,2350.0,2348.7,0.50597716]
[1769957201372,0.21291,2350.6,2348.7,0.50597716]
[1769957201578,0.21287,2351.1,2349.4,0.50597716]
[1769957201781,0.21288,2350.9,2349.6,0.50597716]
[1769957201975,0.00306269,2351.3,2349.6,0.50939287]
[1769957202176,0.21289,2350.8,2349.6,0.50939287]
[1769957202574,0.2129,2350.7,2349.6,0.50939287]
[1769957203081,0.00306269,2351.3,2349.6,0.50939287]
[1769957203280,0.21286,2351.1,2349.6,0.50939287]
[1769957203476,0.00306269,2351.3,2349.6,0.50939287]
[1769957203676,0.21289,2350.9,2349.6,0.50939287]
[1769957204378,0.00306269,2351.3,2349.6,0.50939287]
[1769957205978,0.00306269,2351.3,2349.6,0.72238287]
[1769957206178,0.00306269,2351.3,2349.7,0.47351916]
[1769957206575,0.2129,2350.7,2349.7,0.47351916]
[1769957207976,0.00306269,2351.3,2349.7,0.47351916]
[1769957207977,0.21285,2351.2,2349.7,0.47351916]
[1769957208180,0.21288,2350.9,2349.7,0.47351916]
[1769957208386,0.2129,2350.8,2350.2,40.8]
[1769957208586,0.2129,2350.7,2350.2,40.8]
[1769957208878,0.2129,2350.7,2350.3,0.47351916]
[1769957209072,0.00306269,2351.3,2350.3,0.47351916]
[1769957209276,0.21591269,2351.3,2350.3,0.47351916]
[1769957209476,0.21285,2351.2,2350.3,0.47351916]
[1769957211681,0.21281,2351.7,2350.4,0.47351916]
[1769957211881,0.21282,2351.6,2350.4,0.47351916]
[1769957212184,0.47722536,2352.2,2350.4,0.47351916]
[1769957212384,0.21278,2352.1,2350.5,0.47351916]
[1769957212584,0.47722536,2352.3,2350.5,0.47351916]
[1769957212782,0.21281,2351.8,2350.5,0.47351916]
[1769957213385,0.00548448,2352.3,2350.5,0.47351916]
[1769957213881,0.21271,2352.9,2351.9,0.47351916]
[1769957214086,0.47722536,2353.2,2351.9,0.47351916]
[1769957214288,0.21272,2352.7,2351.9,0.47351916]
[1769957214786,0.21745117,2352.7,2351.9,0.47838318]
[1769957216187,0.21274,2352.5,2351.9,0.00486402]
[1769957216982,0.00473117,2352.7,2351.9,0.47838318]
[1769957217286,5.55994864,2353.7,2352.1,0.47351916]
[1769957217490,0.21263,2353.7,2352.1,0.47351916]
[1769957217688,0.21264,2353.6,2352.1,0.47351916]
[1769957218284,0.47722536,2354.2,2352.1,0.47351916]
[1769957218588,0.37200527,2354.7,2352.1,0.47351916]
[1769957218589,0.21264,2353.6,2352.1,0.47351916]
[1769957219292,0.21265,2353.5,2352.1,0.47351916]
[1769957219486,0.21265,2353.5,2352.7,40.8]
[1769957219991,0.21267,2353.3,2352.7,40.8]
[1769957220187,0.00412089,2353.6,2352.7,40.8]
[1769957220687,0.00412089,2353.6,2352.8,0.47351916]
[1769957220990,0.10037633,2353.7,2352.8,0.47351916]
[1769957221186,0.10037633,2353.7,2352.7,40.8]
[1769957221687,0.47722536,2353.4,2352.7,40.8]
[1769957221894,0.21269,2353.1,2352.0,0.47351916]
[1769957222090,0.00313568,2353.4,2352.0,0.47351916]
[1769957222793,0.47722536,2353.8,2352.7,0.47351916]
[1769957222991,4.95154286,2354.8,2352.7,0.47351916]
[1769957222992,0.21264,2353.6,2352.8,0.47351916]
[1769957223192,0.68981536,2354.2,2352.8,0.47351916]
[1769957223897,0.21259,2354.1,2352.8,0.47351916]
[1769957224495,0.0033613,2354.2,2352.8,0.47351916]
[1769957224898,0.48058666,2354.2,2353.0,0.47351916]
[1769957225191,0.47722536,2353.2,2352.0,0.47351916]
[1769957225390,0.21269,2353.1,2352.0,0.47351916]
[1769957225595,0.21273,2352.6,2351.9,0.00486402]
[1769957225787,0.21273,2352.6,2350.8,1.701]
[1769957225788,0.21277,2352.2,2350.9,0.47351916]
[1769957225986,0.21271,2352.8,2351.1,0.47351916]
[1769957226495,0.21271,2352.8,2351.5,0.47351916]
[1769957226791,0.47722536,2352.7,2351.6,40.8]
[1769957227994,0.21279,2352.0,2350.9,0.69040118]
[1769957228392,0.21279,2352.0,2351.2,0.69527159]
[1769957228591,0.67100085,2352.5,2351.3,0.00487041]
[1769957228790,0.67100085,2352.5,2351.2,0.69527159]
[1769957229094,0.21274,2352.5,2351.4,41.49040118]
[1769957229286,0.00482114,2352.8,2351.6,0.69040118]
[1769957229287,0.67582199,2352.8,2351.6,0.69040118]
[1769957229487,0.00482114,2352.8,2351.7,0.69040118]
[1769957229696,0.88367085,2353.3,2352.0,0.69527159]
[1769957229895,7.20410441,2354.6,2352.0,0.69040118]
[1769957229896,0.21271,2352.9,2352.0,0.69040118]
[1769957230195,0.21271,2352.8,2351.8,1.702]
[1769957230690,0.88372085,2352.7,2351.8,1.702]
[1769957230887,0.21272,2352.7,2351.8,1.702]
[1769957231093,0.21272,2352.7,2352.1,0.00487041]
[1769957231489,0.21272,2352.7,2352.2,0.00487041]
[1769957231694,0.21272,2352.7,2352.1,0.00487041]
[1769957231994,0.21272,2352.7,2351.9,0.69040118]
[1769957232198,0.00311822,2352.8,2352.1,0.00487041]
[1769957232395,0.00311822,2352.8,2352.0,0.00487041]
[1769957232595,0.00311822,2352.8,2352.1,0.00487041]
[1769957232797,0.21269,2353.0,2352.3,0.00487041]
[1769957233191,0.67100085,2352.6,2351.4,41.49040118]
[1769957233397,0.67100085,2352.6,2351.4,40.8]
[1769957233598,0.67100085,2352.3,2351.4,40.8]
[1769957233797,0.6747889,2352.3,2351.4,40.8]
[1769957234503,0.00378805,2352.3,2351.4,40.8]
[1769957234700,0.88379085,2351.9,2351.4,40.8]
[1769957235391,0.2128,2351.8,2350.8,0.69040118]
[1769957235597,0.00378805,2352.3,2350.8,0.69040118]
[1769957236001,0.88379085,2351.9,2350.8,0.69040118]
[1769957236201,0.88379085,2351.9,2350.7,4.489]
[1769957236202,0.21282,2351.7,2350.7,5.17940118]
[1769957236396,0.21282,2351.7,2350.9,40.8]
[1769957236797,0.67100085,2351.1,2349.5,0.69040118]
[1769957236998,0.21289,2350.9,2349.5,0.69040118]
[1769957237300,0.67100085,2351.1,2349.8,40.8]
[1769957237494,1.702,2351.6,2349.8,40.8]
[1769957237495,0.21291,2350.6,2349.8,40.8]
[1769957237694,0.88391085,2350.6,2349.8,40.8]
[1769957237895,0.21292,2350.5,2349.8,40.8034091]
[1769957238099,0.0040523,2350.6,2349.8,41.49381028]
[1769957238497,0.0040523,2350.6,2349.8,40.8034091]
[1769957238693,0.0040523,2350.6,2348.7,0.21308]
[1769957238694,0.67100085,2350.2,2348.5,1.702]
[1769957238997,0.21296,2350.0,2348.6,4.142]
[1769957239599,1.7060523,2350.6,2349.0,40.8]
[1769957239799,1.9189623,2350.6,2349.0,40.8]
[1769957240198,0.0040523,2350.6,2349.0,40.8]
[1769957240398,0.67100085,2351.1,2349.1,0.21304]
[1769957240599,0.67100085,2351.1,2349.0,40.8]
[1769957240600,0.21289,2350.8,2349.0,40.8]
[1769957240801,0.21289,2350.8,2349.1,0.69040118]
[1769957241196,0.21289,2350.8,2349.3,0.69040118]
[1769957241402,0.00446651,2350.8,2349.3,0.69040118]
[1769957241800,0.67546736,2350.8,2349.3,0.69040118]
[1769957242001,0.21291,2350.6,2349.5,0.69040118]
[1769957242199,0.21292,2350.5,2349.5,0.69040118]
[1769957242904,0.00446651,2350.8,2349.5,0.69040118]
[1769957243107,0.21293,2350.4,2349.5,0.69040118]
[1769957244701,0.00446651,2350.8,2349.5,0.69040118]
[1769957245506,0.21291,2350.7,2350.1,40.8]
[1769957246812,0.21285,2351.3,2350.2,0.69040118]
[1769957247501,0.74506192,2351.8,2350.2,0.69040118]
[1769957247701,0.67100085,2351.8,2350.2,0.69040118]
[1769957248008,0.21285,2351.3,2350.2,0.69040118]
[1769957249008,0.88385085,2351.3,2350.2,0.69040118]
[1769957249202,0.67100085,2351.3,2350.2,0.69040118]
[1769957249406,0.21285,2351.2,2350.2,0.69040118]
[1769957249607,0.88386085,2351.1,2350.1,47.066]
[1769957249907,0.21286,2351.1,2350.1,47.75640118]
[1769957250313,0.88386085,2351.1,2350.1,47.066]
[1769957251211,0.21286,2351.1,2350.2,0.69040118]
[1769957252008,0.21282,2351.6,2350.2,0.69040118]
[1769957252715,0.21282,2351.6,2350.8,41.49040118]
[1769957252912,0.21282,2351.6,2350.8,41.49393131]
[1769957253212,0.21282,2351.6,2350.8,40.80353013]
[1769957253409,0.67633276,2351.8,2350.8,40.80353013]
[1769957253710,0.88377085,2352.2,2350.9,0.69040118]
[1769957254814,0.21600062,2352.2,2350.9,0.69040118]
[1769957255008,0.21277,2352.1,2350.9,0.69040118]
[1769957255204,0.21279,2351.9,2350.9,0.69040118]
[1769957256413,0.00323062,2352.2,2350.9,0.69040118]
[1769957257604,0.21278,2352.1,2350.9,0.69040118]
[1769957257815,0.21278,2352.0,2350.9,0.69040118]
[1769957258013,0.21279,2351.9,2350.9,0.69040118]
[1769957258210,0.21279,2351.9,2351.3,40.8]
[1769957258608,1.23408029,2351.7,2351.3,40.8]
[1769957258814,1.23409029,2351.6,2351.2,4.635]
[1769957259316,1.02127029,2351.6,2350.8,0.00353013]
[1769957259518,0.21285,2351.3,2350.8,1.02226478]
[1769957259706,0.21285,2351.3,2350.9,40.8]
[1769957260010,0.21286,2351.2,2350.8,0.00353013]
[1769957260313,1.23413029,2351.2,2350.8,0.00353013]
[1769957260513,1.23413029,2351.2,2350.5,4.643]
[1769957260914,1.23413029,2351.2,2350.9,40.8]
[1769957261115,1.23413029,2351.2,2350.5,4.643]
[1769957261316,1.02127029,2351.0,2349.3,3.53882117]
[1769957261518,1.02127029,2351.0,2349.4,1.01873465]
[1769957262107,1.02127029,2351.0,2350.0,41.81873465]
[1769957262513,0.21288,2351.0,2350.1,1.01873465]
[1769957263608,1.02127029,2351.4,2350.1,1.01873465]
[1769957266417,0.21283,2351.5,2350.1,1.01873465]
[1769957267413,0.21286,2351.2,2350.1,1.01873465]
[1769957267618,0.21286,2351.2,2350.6,40.8]
[1769957267819,1.31122275,2351.1,2350.6,40.8]
[1769957268008,0.21289,2350.9,2350.5,4.688]
[1769957268215,0.21295,2350.2,2349.4,5.66010759]
[1769957268513,0.2129,2350.8,2349.5,1.11810759]
[1769957268710,1.09835275,2351.2,2349.5,1.11810759]
[1769957268914,1.09835275,2351.2,2349.6,1.11810759]
[1769957269113,0.21284,2351.4,2350.2,1.11810759]
[1769957269322,1.09835275,2351.4,2350.1,40.8]
[1769957269521,1.10137288,2351.4,2350.1,40.8]
[1769957269921,0.2129,2350.8,2350.1,40.8]
[1769957270613,1.31125275,2350.8,2350.1,40.8]
[1769957272215,1.09835275,2350.3,2349.3,0.00380243]
[1769957273111,1.09835275,2350.3,2349.4,40.8]
[1769957273315,0.213,2349.6,2348.8,1.11810759]
[1769957273518,0.21301,2349.5,2348.5,6.439]
[1769957274325,0.21302,2349.4,2348.6,40.8]
[1769957274817,0.00357637,2349.5,2348.6,40.8]
[1769957275014,1.10192912,2349.5,2348.6,40.8]
[1769957275218,0.21303,2349.3,2348.6,40.8]
[1769957275416,1.31140275,2349.1,2348.6,40.8]
[1769957275620,0.21305,2349.1,2348.6,40.8]
[1769957276626,1.31494912,2349.5,2348.6,40.8]
[1769957276829,1.09835275,2350.2,2348.8,1.11810759]
[1769957277226,1.09835275,2349.8,2348.6,40.8]
[1769957277617,0.21302,2349.4,2348.6,40.8]
[1769957277818,0.21757116,2349.4,2348.6,41.91810759]
[1769957278524,0.21757116,2349.4,2348.7,1.11810759]
[1769957278724,0.21303,2349.3,2348.6,40.8]
[1769957279120,1.10290391,2349.4,2348.6,40.8]
[1769957279928,2.60834189,2349.3,2347.9,1.11810759]
[1769957280128,0.21308,2348.7,2347.9,1.11810759]
[1769957280625,0.21308,2348.7,2348.0,42.2623256]
[1769957280823,0.21309,2348.6,2348.0,42.2623256]
[1769957281023,0.21304,2349.2,2348.1,1.45670804]
[1769957281231,0.21306,2349.0,2348.1,1.45670804]
[1769957281725,0.21306,2349.0,2348.3,1.45670804]
[1769957281930,0.00455116,2349.4,2348.3,1.45670804]
[1769957282328,0.25890264,2349.2,2348.0,40.804823]
[1769957282520,0.25890264,2349.2,2348.0,42.26434296]
[1769957282521,0.21309,2348.6,2348.0,42.26434296]
[1769957282720,0.25890264,2349.2,2348.0,42.26434296]
[1769957282928,0.25890264,2349.1,2348.0,42.26434296]
[1769957283131,0.32742146,2349.3,2348.1,1.45778209]
[1769957283835,0.00455116,2349.4,2348.2,1.45778209]
[1769957284633,0.21297,2350.0,2348.2,1.45778209]
[1769957284834,0.21297,2349.9,2348.2,1.45778209]
[1769957285127,0.21306,2348.9,2348.2,1.45778209]
[1769957285332,0.21309,2348.6,2348.0,40.804823]
[1769957285527,0.21313,2348.2,2346.7,1.704]
[1769957285729,0.21313,2348.2,2346.8,4.846]
[1769957286429,0.21308,2348.8,2347.4,40.8]
[1769957286629,0.21308,2348.8,2347.5,4.848]
[1769957286836,0.21309,2348.6,2347.5,4.848]
[1769957287434,0.21632969,2348.6,2347.6,1.58561873]
[1769957288027,1.34967206,2349.9,2347.8,1.58561873]
[1769957288232,0.21307,2348.9,2347.8,1.58561873]
[1769957288433,0.21307,2348.8,2347.8,1.58561873]
[1769957289037,2.60834189,2349.6,2347.8,1.58561873]
[1769957289229,0.21304,2349.2,2347.8,1.58561873]
[1769957289631,0.21305,2349.1,2347.8,1.58561873]
[1769957289831,0.21308,2348.7,2347.8,1.58561873]
[1769957290028,0.00520992,2348.7,2347.8,1.58561873]
[1769957290532,0.21311,2348.4,2347.8,1.58561873]
[1769957290735,0.00520992,2348.7,2347.7,1.704]
[1769957290938,1.61298359,2348.7,2347.5,6.43361873]
[1769957291133,2.60834189,2348.6,2347.4,40.8]
[1769957291329,0.21316,2347.9,2347.2,1.58561873]
[1769957291640,0.21317,2347.7,2347.2,1.58561873]
[1769957291835,0.21317,2347.7,2346.8,3.29397987]
[1769957292237,0.21317,2347.7,2346.9,42.38561873]
[1769957292438,1.60610514,2347.7,2346.8,0.00436114]
[1769957292634,0.21316,2347.9,2346.8,1.58997987]
[1769957292834,1.60610514,2348.0,2346.8,0.00436114]
[1769957293034,1.704,2348.3,2346.8,0.00436114]
[1769957293035,1.62746549,2347.5,2346.8,0.00436114]
[1769957293236,0.21321,2347.3,2346.1,1.58561873]
[1769957293637,1.91715,2348.0,2346.6,1.75613677]
[1769957293839,0.21316,2347.9,2346.6,1.75613677]
[1769957294032,0.21316,2347.9,2346.8,1.76026895]
[1769957294235,2.68645089,2348.4,2347.1,1.76026895]
[1769957294431,0.078109,2347.8,2345.4,1.76026895]
[1769957294637,0.21323,2347.1,2345.6,1.76026895]
[1769957294837,2.65755562,2347.3,2345.6,1.76026895]
[1769957295035,0.21328,2346.6,2345.6,1.76026895]
[1769957295345,0.21322,2347.3,2345.8,1.76105676]
[1769957295541,0.00326793,2347.3,2346.2,1.76105676]
[1769957295742,0.21324,2347.0,2346.2,1.76105676]
[1769957296039,0.21324,2346.9,2346.1,40.8]
[1769957296633,0.21324,2346.9,2346.2,1.73419849]
[1769957296836,0.00326793,2347.3,2346.4,1.73519327]
[1769957297233,0.00326793,2347.3,2346.5,1.73519327]
[1769957297544,0.07698543,2348.3,2346.9,1.73519327]
[1769957297841,0.21321,2347.3,2346.6,1.73355931]
[1769957298436,0.21749636,2347.3,2346.6,1.73355931]
[1769957298734,2.61819546,2347.5,2347.0,1.74028091]
[1769957298939,2.61819546,2347.9,2347.0,1.74028091]
[1769957299339,2.83134546,2347.9,2347.0,1.74028091]
[1769957299538,2.61819546,2348.3,2347.0,1.74028091]
[1769957299733,2.62142534,2348.3,2347.5,1.74130839]
[1769957299937,2.62142534,2348.3,2347.5,1.74682736]
[1769957300140,2.62142534,2348.3,2347.6,1.7595034]
[1769957300339,2.62142534,2348.3,2347.6,1.75514226]
[1769957300537,2.61819546,2348.7,2347.9,0.00436114]
[1769957300741,0.2131,2348.5,2347.9,1.75514226]
[1769957300939,2.61819546,2348.7,2348.2,1.75606279]
[1769957301136,0.21306,2349.0,2348.2,1.75606279]
[1769957301339,0.21297,2349.9,2348.6,1.75606279]
[1769957301643,0.21297,2349.9,2348.8,1.75606279]
[1769957301644,2.61819546,2349.7,2348.8,1.75606279]
[1769957301845,0.213,2349.6,2348.8,1.75606279]
[1769957302242,0.00355432,2349.9,2349.2,1.74233956]
[1769957302438,0.21294,2350.3,2349.2,1.74535368]
[1769957302640,1.87840602,2350.4,2349.4,1.7467007]
[1769957302849,2.61819546,2350.0,2349.4,1.74233956]
[1769957303337,2.61819546,2349.6,2349.2,0.00301412]
[1769957303539,2.62131214,2349.6,2349.2,1.74638113]
[1769957303740,0.21292,2350.5,2349.2,1.74638113]
[1769957304043,2.61819546,2350.3,2349.2,1.74638113]
[1769957304248,4.95154286,2351.1,2349.2,1.74638113]
[1769957304249,2.83106546,2351.1,2349.4,1.73517933]
[1769957304540,2.61819546,2351.1,2349.6,1.73517933]
[1769957304743,2.61819546,2350.3,2349.6,1.73517933]